[Event "50th La Roda Open 2024"]
[Site "La Roda"]
[Date "2024.03.31"]
[Round "8.8"]
[White "Sanchez Alvarez, Roberto Carlos"]
[Black "Horcajuelo Rocamora, Martin"]
[Result "1-0"]
[ECO "D35"]
[WhiteElo "2407"]
[BlackElo "2183"]
[Annotator "RC"]
[PlyCount "99"]
[EventDate "2024.03.27"]
[EventType "swiss"]
[EventCountry "ESP"]
[SourceTitle "playchess.com"]
[Source "ChessBase"]
[SourceQuality "1"]
[TimeControl "5400+30"]

1. d4 {[%emt 0:02:45]} d5 {[%emt 0:00:45]} 2. c4 {[%emt 0:00:18]} e6 {[%emt 0:00:14]} 3. Nc3 {[%emt 0:02:27]} Nf6 {[%emt 0:00:21]} 4. cxd5 {[%emt 0:00:09]} exd5 {[%emt 0:00:08]} 5. Bg5 {[%emt 0:00:06]} c6 {[%emt 0:01:00]} 6. e3 {[%emt 0:00:11]} h6 {[%emt 0:01:29]} 7. Bh4 {[%emt 0:00:09]} Be7 {[%emt 0:00:17]} 8. Bd3 {[%emt 0:00:11]} O-O {[%emt 0:00:44]} 9. Nge2 {[%emt 0:00:15]} Ne8 {[%emt 0:04:32]} 10. Bg3 {[%emt 0:00:51]} Nd6 {[%emt 0:01:34]} 11. Qc2 {[%emt 0:00:35]} Be6 {[%emt 0:04:15]} 12. O-O {[%emt 0:04:17]} Nd7 {[%emt 0:05:27]} 13. Nf4 {[%emt 0:00:52]} Nf6 {[%emt 0:04:16]} 14. Nxe6 {[%emt 0:01:02]} fxe6 {[%emt 0:00:09]} 15. Ne2 {[%emt 0:05:48]} Nde4 {[%emt 0:13:09]} 16. Be5 {[%emt 0:01:46]} Bd6 {[%emt 0:12:19]} 17. Nf4 {[%emt 0:16:00]} Qd7 {[%emt 0:12:41]} 18. Ng6 {[%emt 0:07:40]} Rfc8 {[%emt 0:05:43]} 19. f3 {[%emt 0:02:01]} Ng5 {[%emt 0:01:54]} 20. Bxf6 {[%emt 0:01:28]} gxf6 {[%emt 0:00:18]} 21. f4 {[%emt 0:00:06]} Nf7 {[%emt 0:02:32]} 22. Rf3 {[%emt 0:00:14]} f5 {[%emt 0:03:24]} 23. Rg3 {[%emt 0:01:18]} Kh7 {[%emt 0:03:23]} 24. Nh4 {[%emt 0:04:07]} Kh8 {[%emt 0:01:47]} 25. Nxf5 {[%emt 0:11:13]} exf5 {[%emt 0:04:42]} 26. Bxf5 {[%emt 0:00:03]} Qe7 {[%emt 0:01:11]} 27. Bxc8 {[%emt 0:00:10]} Rxc8 {[%emt 0:00:10]} 28. Qg6 {[%emt 0:00:05]} Qf8 {[%emt 0:00:41]} 29. Rf1 {[%emt 0:00:28]} Be7 {[%emt 0:03:14]} 30. Qh5 {[%emt 0:07:26]} Rd8 {[%emt 0:02:22]} 31. f5 {[%emt 0:04:42]} Rd6 {[%emt 0:01:10]} 32. Rg6 {[%emt 0:05:23]} Bg5 {[%emt 0:03:27]} 33. Rf3 {[%emt 0:02:22]} Qe7 {[%emt 0:01:39]} 34. h4 {[%emt 0:00:10]} Bxe3+ {[%emt 0:01:50]} 35. Kf1 {[%emt 0:06:24]} Bd2 {[%emt 0:02:06]} 36. g3 {[%emt 0:00:02]} Rf6 {[%emt 0:01:03]} 37. Rf2 {[%emt 0:05:58]} Qe1+ {[%emt 0:01:40]} 38. Kg2 {[%emt 0:00:02]} Be3 {[%emt 0:00:05]} 39. Rf1 {[%emt 0:01:20]} Qd2+ {[%emt 0:00:10]} 40. Kh3 {[%emt 0:00:49]} Qxd4 {[%emt 0:00:14]} 41. Re1 {[%emt 0:01:22]} Qe5 {[%emt 0:02:19]} 42. Rxf6 {[%emt 0:04:01]} Qxf6 {[%emt 0:00:12]} 43. Rxe3 {[%emt 0:00:04]} Kg7 {[%emt 0:00:51]} 44. Re6 {[%emt 0:00:51]} Ng5+ {[%emt 0:00:05]} 45. hxg5 {[%emt 0:01:02]} Qxf5+ {[%emt 0:00:01]} 46. Qg4 {[%emt 0:00:13]} Qf1+ {[%emt 0:00:04]} 47. Kh4 {[%emt 0:00:32]} Qh1+ {[%emt 0:00:06]} 48. Qh3 {[%emt 0:00:03]} hxg5+ {[%emt 0:00:04]} 49. Kg4 {[%emt 0:00:06]} Qd1+ {[%emt 0:00:04]} 50. Kxg5 {[%emt 0:00:31]} 1-0

[Event "50th La Roda Open 2024"]
[Site "La Roda"]
[Date "2024.03.31"]
[Round "8.9"]
[White "Dias, Ricardo Pedro Cruz"]
[Black "Cruz Lledo, Pablo"]
[Result "0-1"]
[ECO "B12"]
[WhiteElo "2216"]
[BlackElo "2353"]
[Annotator "RC"]
[PlyCount "64"]
[EventDate "2024.03.27"]
[EventType "swiss"]
[EventCountry "ESP"]
[SourceTitle "playchess.com"]
[Source "ChessBase"]
[SourceQuality "1"]
[TimeControl "5400+30"]

1. e4 {[%emt 0:07:06]} c6 {[%emt 0:00:04]} 2. d4 {[%emt 0:00:05]} d5 {[%emt 0:00:04]} 3. f3 {[%emt 0:00:07]} dxe4 {[%emt 0:02:58]} 4. fxe4 {[%emt 0:00:12]} e5 {[%emt 0:00:04]} 5. Nf3 {[%emt 0:00:08]} Be6 {[%emt 0:00:08]} 6. c3 {[%emt 0:00:23]} Nf6 {[%emt 0:00:47]} 7. Bd3 {[%emt 0:00:10]} Nbd7 {[%emt 0:00:26]} 8. O-O {[%emt 0:00:08]} Qb6 {[%emt 0:03:36]} 9. Kh1 {[%emt 0:03:38]} Bd6 {[%emt 0:03:32]} 10. Qe2 {[%emt 0:01:42]} O-O-O {[%emt 0:06:11]} 11. Be3 {[%emt 0:06:38]} Qc7 {[%emt 0:00:14]} 12. Na3 {[%emt 0:01:31]} Rhe8 {[%emt 1:18:26]} 13. Qc2 {[%emt 0:18:54]} Kb8 {[%emt 0:00:00]} 14. Rae1 {[%emt 0:01:26]} a6 {[%emt 0:00:00]} 15. Bg1 {[%emt 0:05:24]} Bxa2 {[%emt 0:00:00]} 16. c4 {[%emt 0:26:35]} exd4 {[%emt 0:00:00]} 17. Bxd4 {[%emt 0:00:32]} Ng4 {[%emt 0:00:00]} 18. h3 {[%emt 0:01:45]} Nge5 {[%emt 0:00:00]} 19. Be2 {[%emt 0:02:19]} Nf6 {[%emt 0:00:00]} 20. Bxe5 {[%emt 0:11:44]} Bxe5 {[%emt 0:00:00]} 21. Nxe5 {[%emt 0:01:44]} Qxe5 {[%emt 0:00:00]} 22. Bf3 {[%emt 0:00:09]} h5 {[%emt 0:00:00]} 23. b4 {[%emt 0:03:51]} g5 {[%emt 0:00:00]} 24. Qxa2 {[%emt 0:00:12]} g4 {[%emt 0:00:00]} 25. b5 {[%emt 0:01:20]} gxf3 {[%emt 0:00:00]} 26. gxf3 {[%emt 0:00:10]} Rd3 {[%emt 0:00:00]} 27. bxc6 {[%emt 0:05:02]} Qg3 {[%emt 0:00:00]} 28. Rb1 {[%emt 0:00:07]} Rxa3 {[%emt 0:00:00]} 29. Rxb7+ {[%emt 0:00:53]} Kc8 {[%emt 0:00:00]} 30. Qxa3 {[%emt 0:00:58]} Qxh3+ {[%emt 0:00:00]} 31. Kg1 {[%emt 0:00:01]} Qg3+ {[%emt 0:00:00]} 32. Kh1 {[%emt 0:00:01]} Qh4+ {[%emt 0:10:00]} 0-1

[Event "50th La Roda Open 2024"]
[Site "La Roda"]
[Date "2024.03.31"]
[Round "8.10"]
[White "Martinez Reyes, Pedro Ramon"]
[Black "Roquero Redondo, Miguel"]
[Result "1/2-1/2"]
[ECO "B44"]
[WhiteElo "2332"]
[BlackElo "2086"]
[Annotator "RC"]
[PlyCount "52"]
[EventDate "2024.03.27"]
[EventType "swiss"]
[EventCountry "ESP"]
[SourceTitle "playchess.com"]
[Source "ChessBase"]
[SourceQuality "1"]
[TimeControl "5400+30"]

1. c4 {[%emt 0:01:46]} e6 {[%emt 0:00:08]} 2. e4 {[%emt 0:00:01]} c5 {[%emt 0:03:12]} 3. Nf3 {[%emt 0:00:32]} Nc6 {[%emt 0:00:31]} 4. d4 {[%emt 0:00:06]} cxd4 {[%emt 0:00:06]} 5. Nxd4 {[%emt 0:00:05]} Nf6 {[%emt 0:02:40]} 6. Nc3 {[%emt 0:00:11]} Bb4 {[%emt 0:02:35]} 7. Qd3 {[%emt 0:00:02]} a6 {[%emt 0:08:13]} 8. Nc2 {[%emt 0:10:23]} Be7 {[%emt 0:02:21]} 9. Be2 {[%emt 0:03:32]} O-O {[%emt 0:04:24]} 10. Bf4 {[%emt 0:00:18]} d6 {[%emt 0:10:09]} 11. O-O {[%emt 0:01:20]} Qc7 {[%emt 0:01:59]} 12. b3 {[%emt 0:03:47]} b6 {[%emt 0:01:35]} 13. Rfd1 {[%emt 0:00:39]} Rd8 {[%emt 0:02:31]} 14. Rac1 {[%emt 0:00:27]} Bb7 {[%emt 0:01:45]} 15. Ne3 {[%emt 0:04:37]} Ne5 {[%emt 0:03:24]} 16. Qb1 {[%emt 0:00:49]} Rac8 {[%emt 0:01:45]} 17. Bg3 {[%emt 0:00:26]} Qb8 {[%emt 0:02:09]} 18. b4 {[%emt 0:05:18]} Qa8 {[%emt 0:02:53]} 19. f3 {[%emt 0:09:23]} Nh5 {[%emt 0:04:24]} 20. Bf2 {[%emt 0:00:49]} Nf4 {[%emt 0:01:10]} 21. Bf1 {[%emt 0:00:04]} h5 {[%emt 0:01:48]} 22. Na4 {[%emt 0:03:39]} Nh3+ {[%emt 0:10:13]} 23. gxh3 {[%emt 0:00:54]} Nxf3+ {[%emt 0:00:06]} 24. Kh1 {[%emt 0:01:11]} Bxe4 {[%emt 0:00:55]} 25. Qb2 {[%emt 0:07:00]} Nh4+ {[%emt 0:03:31]} 26. Kg1 {[%emt 0:00:47]} Nf3+ {[%emt 0:00:54]} 1/2-1/2

[Event "50th La Roda Open 2024"]
[Site "La Roda"]
[Date "2024.03.31"]
[Round "8.11"]
[White "Jimenez Martinez, Jose Vicente"]
[Black "Buendia Pinar, Alvaro"]
[Result "1/2-1/2"]
[ECO "D37"]
[WhiteElo "2195"]
[BlackElo "2331"]
[Annotator "RC"]
[PlyCount "125"]
[EventDate "2024.03.27"]
[EventType "swiss"]
[EventCountry "ESP"]
[SourceTitle "playchess.com"]
[Source "ChessBase"]
[SourceQuality "1"]
[TimeControl "5400+30"]

1. d4 {[%emt 0:00:02]} d5 {[%emt 0:04:30]} 2. c4 {[%emt 0:00:18]} e6 {[%emt 0:00:06]} 3. Nc3 {[%emt 0:00:50]} a6 {[%emt 0:00:44]} 4. cxd5 {[%emt 0:01:09]} exd5 {[%emt 0:00:05]} 5. Nf3 {[%emt 0:00:05]} Nf6 {[%emt 0:00:06]} 6. Bg5 {[%emt 0:00:28]} Be6 {[%emt 0:00:14]} 7. e3 {[%emt 0:00:26]} Nbd7 {[%emt 0:01:57]} 8. Bd3 {[%emt 0:01:42]} Bd6 {[%emt 0:00:22]} 9. Bf4 {[%emt 0:01:54]} Qe7 {[%emt 0:01:26]} 10. O-O {[%emt 0:02:42]} O-O {[%emt 0:00:04]} 11. Ne5 {[%emt 0:01:48]} Nb6 {[%emt 0:11:42]} 12. Bg3 {[%emt 0:05:23]} Nfd7 {[%emt 0:04:23]} 13. e4 {[%emt 0:07:59]} Bxe5 {[%emt 0:04:29]} 14. dxe5 {[%emt 0:06:17]} d4 {[%emt 0:00:03]} 15. Nd5 {[%emt 0:02:43]} Nxd5 {[%emt 0:05:13]} 16. exd5 {[%emt 0:00:05]} Bxd5 {[%emt 0:00:12]} 17. Qc2 {[%emt 0:02:33]} c5 {[%emt 0:11:51]} 18. Bxh7+ {[%emt 0:01:15]} Kh8 {[%emt 0:00:03]} 19. Be4 {[%emt 0:01:45]} Nf6 {[%emt 0:05:23]} 20. Bxd5 {[%emt 0:03:08]} Nxd5 {[%emt 0:00:06]} 21. Rae1 {[%emt 0:00:35]} Nb4 {[%emt 0:10:07]} 22. Qe4 {[%emt 0:03:27]} Rae8 {[%emt 0:00:53]} 23. Bh4 {[%emt 0:07:29]} Qe6 {[%emt 0:02:08]} 24. f4 {[%emt 0:03:30]} f5 {[%emt 0:00:46]} 25. Qxb7 {[%emt 0:00:48]} Nc2 {[%emt 0:10:55]} 26. Re2 {[%emt 0:02:11]} d3 {[%emt 0:13:40]} 27. Rd2 {[%emt 0:01:14]} c4 {[%emt 0:00:09]} 28. b3 {[%emt 0:04:03]} Nd4 {[%emt 0:02:41]} 29. Kh1 {[%emt 0:06:59]} cxb3 {[%emt 0:01:46]} 30. axb3 {[%emt 0:05:28]} Nxb3 {[%emt 0:00:13]} 31. Rb2 {[%emt 0:05:05]} Nc5 {[%emt 0:00:29]} 32. Qf3 {[%emt 0:00:25]} Qc4 {[%emt 0:01:22]} 33. Rd2 {[%emt 0:03:22]} Rb8 {[%emt 0:04:05]} 34. Be7 {[%emt 0:03:12]} Ne4 {[%emt 0:02:13]} 35. Rxd3 {[%emt 0:00:59]} Rfc8 {[%emt 0:01:13]} 36. Bh4 {[%emt 0:03:02]} Kg8 {[%emt 0:00:58]} 37. h3 {[%emt 0:00:38]} a5 {[%emt 0:00:46]} 38. Rfd1 {[%emt 0:00:21]} a4 {[%emt 0:00:27]} 39. Qh5 {[%emt 0:01:13]} Qe6 {[%emt 0:00:37]} 40. Kh2 {[%emt 0:04:09]} Ra8 {[%emt 0:00:05]} 41. Qf3 {[%emt 0:01:00]} Rcb8 {[%emt 0:00:42]} 42. Qe3 {[%emt 0:01:56]} Kh7 {[%emt 0:00:34]} 43. Rd4 {[%emt 0:03:30]} Qg6 {[%emt 0:00:37]} 44. Rd6 {[%emt 0:03:56]} Nxd6 {[%emt 0:00:13]} 45. Rxd6 {[%emt 0:00:01]} Qh5 {[%emt 0:00:19]} 46. Bg5 {[%emt 0:00:35]} Rb3 {[%emt 0:00:53]} 47. Qd2 {[%emt 0:00:21]} Rc8 {[%emt 0:00:39]} 48. Rh6+ {[%emt 0:00:36]} Qxh6 {[%emt 0:00:15]} 49. Bxh6 {[%emt 0:00:03]} Kxh6 {[%emt 0:00:10]} 50. Qd7 {[%emt 0:00:13]} Rbb8 {[%emt 0:01:54]} 51. Qxa4 {[%emt 0:01:21]} g6 {[%emt 0:00:05]} 52. Qd7 {[%emt 0:00:19]} Rd8 {[%emt 0:00:27]} 53. Qe7 {[%emt 0:00:14]} Rd2 {[%emt 0:00:08]} 54. h4 {[%emt 0:01:36]} Rh8 {[%emt 0:01:27]} 55. h5 {[%emt 0:00:16]} Rg8 {[%emt 0:00:22]} 56. Qf7 {[%emt 0:00:48]} Rg7 {[%emt 0:00:15]} 57. Qf6 {[%emt 0:00:18]} Kh7 {[%emt 0:00:22]} 58. Qg5 {[%emt 0:00:58]} gxh5 {[%emt 0:00:16]} 59. Qxh5+ {[%emt 0:00:20]} Kg8 {[%emt 0:00:02]} 60. Qe8+ {[%emt 0:00:39]} Kh7 {[%emt 0:00:04]} 61. Qh5+ {[%emt 0:00:01]} Kg8 {[%emt 0:00:01]} 62. Qe8+ {[%emt 0:01:11]} Kh7 {[%emt 0:00:48]} 63. Qh5+ {[%emt 0:00:20]} 1/2-1/2

[Event "50th La Roda Open 2024"]
[Site "La Roda"]
[Date "2024.03.31"]
[Round "8.12"]
[White "Ramiro Ovejero, Juan Luis"]
[Black "Hapala, Elisabeth"]
[Result "1/2-1/2"]
[ECO "D03"]
[WhiteElo "2316"]
[BlackElo "2015"]
[Annotator "RC"]
[PlyCount "111"]
[EventDate "2024.03.27"]
[EventType "swiss"]
[EventCountry "ESP"]
[SourceTitle "playchess.com"]
[Source "ChessBase"]
[SourceQuality "1"]
[TimeControl "5400+30"]

1. d4 {[%emt 0:00:04]} Nf6 {[%emt 0:00:05]} 2. Nf3 {[%emt 0:00:04]} e6 {[%emt 0:00:04]} 3. Bg5 {[%emt 0:00:04]} c5 {[%emt 0:00:12]} 4. e3 {[%emt 0:00:11]} h6 {[%emt 0:00:15]} 5. Bh4 {[%emt 0:00:35]} d5 {[%emt 0:00:16]} 6. Nbd2 {[%emt 0:00:21]} Nbd7 {[%emt 0:00:24]} 7. c3 {[%emt 0:00:35]} Bd6 {[%emt 0:00:22]} 8. Bd3 {[%emt 1:32:36]} O-O {[%emt 0:00:31]} 9. O-O {[%emt 0:00:00]} b6 {[%emt 0:00:43]} 10. Re1 {[%emt 0:00:00]} Bb7 {[%emt 0:00:22]} 11. e4 {[%emt 0:00:00]} dxe4 {[%emt 0:00:35]} 12. Bxe4 {[%emt 0:00:00]} Bxe4 {[%emt 0:02:58]} 13. Nxe4 {[%emt 0:00:00]} Be7 {[%emt 0:00:07]} 14. Bxf6 {[%emt 0:00:00]} Nxf6 {[%emt 0:12:22]} 15. Nxf6+ {[%emt 0:00:00]} Bxf6 {[%emt 0:00:05]} 16. dxc5 {[%emt 0:00:00]} bxc5 {[%emt 0:00:37]} 17. Qxd8 {[%emt 0:00:00]} Rfxd8 {[%emt 0:00:05]} 18. Red1 {[%emt 0:00:00]} Rxd1+ {[%emt 0:05:15]} 19. Rxd1 {[%emt 0:00:00]} Rb8 {[%emt 0:00:16]} 20. b3 {[%emt 0:00:00]} Bxc3 {[%emt 0:02:35]} 21. Rd7 {[%emt 0:00:00]} a5 {[%emt 0:02:01]} 22. g3 {[%emt 0:00:00]} c4 {[%emt 0:15:26]} 23. bxc4 {[%emt 0:00:00]} Rc8 {[%emt 0:00:07]} 24. h4 {[%emt 0:00:00]} Rxc4 {[%emt 0:04:54]} 25. Rd8+ {[%emt 0:00:00]} Kh7 {[%emt 0:00:05]} 26. h5 {[%emt 0:00:00]} g6 {[%emt 0:04:43]} 27. hxg6+ {[%emt 0:00:00]} Kxg6 {[%emt 0:00:08]} 28. Rd3 {[%emt 0:00:00]} a4 {[%emt 0:01:57]} 29. Kf1 {[%emt 0:00:00]} e5 {[%emt 0:20:32]} 30. Ke2 {[%emt 0:00:00]} e4 {[%emt 0:03:40]} 31. Nh4+ {[%emt 0:00:00]} Kg7 {[%emt 0:06:44]} 32. Rd6 {[%emt 0:00:00]} Rc5 {[%emt 0:07:53]} 33. Ra6 {[%emt 0:00:00]} Ra5 {[%emt 0:01:59]} 34. Rc6 {[%emt 0:00:00]} Bf6 {[%emt 0:00:19]} 35. Rc4 {[%emt 0:00:00]} Bxh4 {[%emt 0:00:23]} 36. gxh4 {[%emt 0:00:00]} f5 {[%emt 0:00:11]} 37. f3 {[%emt 0:00:00]} exf3+ {[%emt 0:00:21]} 38. Kxf3 {[%emt 0:00:00]} Kg6 {[%emt 0:01:15]} 39. Rc6+ {[%emt 0:00:00]} Kh5 {[%emt 0:00:17]} 40. Kf4 {[%emt 0:00:00]} a3 {[%emt 0:01:04]} 41. Rd6 {[%emt 0:00:00]} Ra4+ {[%emt 0:01:24]} 42. Kxf5 {[%emt 0:00:00]} Rxh4 {[%emt 0:00:06]} 43. Rd3 {[%emt 0:00:00]} Rh2 {[%emt 0:00:40]} 44. Rxa3 {[%emt 0:00:00]} Rf2+ {[%emt 0:00:05]} 45. Ke4 {[%emt 0:00:00]} Kg4 {[%emt 0:00:06]} 46. Ra8 {[%emt 0:00:00]} h5 {[%emt 0:00:11]} 47. a4 {[%emt 0:00:00]} h4 {[%emt 0:02:06]} 48. a5 {[%emt 0:00:00]} h3 {[%emt 0:00:54]} 49. Rg8+ {[%emt 0:00:00]} Kh4 {[%emt 0:00:03]} 50. a6 {[%emt 0:00:00]} Ra2 {[%emt 0:00:38]} 51. Kf4 {[%emt 0:00:00]} Ra4+ {[%emt 0:00:10]} 52. Kf3 {[%emt 0:00:00]} Rxa6 {[%emt 0:00:55]} 53. Rh8+ {[%emt 0:00:00]} Kg5 {[%emt 0:00:02]} 54. Rxh3 {[%emt 0:00:00]} Ra3+ {[%emt 0:00:03]} 55. Kg2 {[%emt 0:00:00]} Rxh3 {[%emt 0:00:03]} 56. Kxh3 {[%emt 0:00:00]} 1/2-1/2

[Event "50th La Roda Open 2024"]
[Site "La Roda"]
[Date "2024.03.31"]
[Round "8.14"]
[White "Romero Berruezo, Francisco"]
[Black "Rottenwohrer Suarez, Juan"]
[Result "0-1"]
[ECO "B12"]
[WhiteElo "2194"]
[BlackElo "2275"]
[Annotator "RC"]
[PlyCount "142"]
[EventDate "2024.03.27"]
[EventType "swiss"]
[EventCountry "ESP"]
[SourceTitle "playchess.com"]
[Source "ChessBase"]
[SourceQuality "1"]
[TimeControl "5400+30"]

1. e4 {[%emt 0:00:13]} c6 {[%emt 0:00:16]} 2. d4 {[%emt 0:01:07]} d5 {[%emt 0:00:01]} 3. e5 {[%emt 0:00:12]} c5 {[%emt 0:00:49]} 4. dxc5 {[%emt 0:00:07]} e6 {[%emt 0:00:25]} 5. Nf3 {[%emt 0:00:14]} Bxc5 {[%emt 0:04:12]} 6. Bd3 {[%emt 0:00:12]} Nc6 {[%emt 0:04:03]} 7. a3 {[%emt 0:00:49]} f6 {[%emt 0:01:58]} 8. b4 {[%emt 0:01:27]} Bb6 {[%emt 0:00:58]} 9. b5 {[%emt 0:02:43]} Nxe5 {[%emt 0:05:13]} 10. Nxe5 {[%emt 0:00:12]} fxe5 {[%emt 0:00:13]} 11. Qh5+ {[%emt 0:00:47]} Kf8 {[%emt 0:01:25]} 12. Qxe5 {[%emt 0:01:17]} Nf6 {[%emt 0:01:45]} 13. O-O {[%emt 0:01:24]} Bc7 {[%emt 0:01:06]} 14. Qe2 {[%emt 0:03:16]} e5 {[%emt 0:01:18]} 15. f3 {[%emt 0:01:54]} Qd6 {[%emt 0:06:56]} 16. a4 {[%emt 0:04:42]} Kf7 {[%emt 0:05:57]} 17. Ba3 {[%emt 0:01:32]} Qb6+ {[%emt 0:00:17]} 18. Kh1 {[%emt 0:01:45]} Qd4 {[%emt 0:00:21]} 19. c3 {[%emt 0:00:58]} Qh4 {[%emt 0:00:49]} 20. Qf2 {[%emt 0:06:43]} Qxf2 {[%emt 0:07:30]} 21. Rxf2 {[%emt 0:00:07]} Be6 {[%emt 0:00:01]} 22. Nd2 {[%emt 0:00:55]} Rac8 {[%emt 0:00:15]} 23. Bb4 {[%emt 0:02:14]} Rhd8 {[%emt 0:00:24]} 24. Re1 {[%emt 0:13:35]} Kg8 {[%emt 0:00:29]} 25. Rfe2 {[%emt 0:01:20]} Nh5 {[%emt 0:04:53]} 26. g3 {[%emt 0:10:25]} Nf6 {[%emt 0:08:17]} 27. a5 {[%emt 0:10:53]} e4 {[%emt 0:06:00]} 28. fxe4 {[%emt 0:02:57]} Bg4 {[%emt 0:01:09]} 29. e5 {[%emt 0:10:13]} Ne4 {[%emt 0:11:53]} 30. Bxe4 {[%emt 0:03:44]} dxe4 {[%emt 0:04:25]} 31. Rxe4 {[%emt 0:00:40]} Be6 {[%emt 0:00:01]} 32. Rd4 {[%emt 0:00:33]} Rd5 {[%emt 0:00:01]} 33. Rxd5 {[%emt 0:01:57]} Bxd5+ {[%emt 0:00:01]} 34. Kg1 {[%emt 0:00:09]} Re8 {[%emt 0:01:02]} 35. c4 {[%emt 0:01:11]} Be6 {[%emt 0:00:32]} 36. Kf2 {[%emt 0:00:40]} Rd8 {[%emt 0:00:47]} 37. Re3 {[%emt 0:01:41]} Rd7 {[%emt 0:00:52]} 38. Ke1 {[%emt 0:00:21]} h5 {[%emt 0:01:13]} 39. Kd1 {[%emt 0:05:49]} Bxc4 {[%emt 0:04:51]} 40. e6 {[%emt 0:00:06]} Rd3 {[%emt 0:00:12]} 41. Re4 {[%emt 0:04:12]} Bxb5 {[%emt 0:01:26]} 42. Kc2 {[%emt 0:01:28]} Rd5 {[%emt 0:00:49]} 43. Nc4 {[%emt 0:00:34]} Be8 {[%emt 0:00:47]} 44. Kc3 {[%emt 0:00:39]} Rf5 {[%emt 0:02:13]} 45. Re3 {[%emt 0:03:34]} h4 {[%emt 0:07:01]} 46. gxh4 {[%emt 0:00:15]} Rf4 {[%emt 0:01:02]} 47. Ne5 {[%emt 0:01:15]} Rxh4 {[%emt 0:00:36]} 48. Nf3 {[%emt 0:00:41]} Rh3 {[%emt 0:00:32]} 49. e7 {[%emt 0:00:21]} g5 {[%emt 0:01:32]} 50. Kd4 {[%emt 0:00:36]} g4 {[%emt 0:01:58]} 51. Ng5 {[%emt 0:00:30]} Rxe3 {[%emt 0:01:40]} 52. Kxe3 {[%emt 0:00:13]} Bxh2 {[%emt 0:00:04]} 53. Ne4 {[%emt 0:00:41]} Kf7 {[%emt 0:02:46]} 54. Ng5+ {[%emt 0:00:46]} Kf6 {[%emt 0:00:29]} 55. Ne4+ {[%emt 0:00:08]} Ke6 {[%emt 0:00:33]} 56. Kf2 {[%emt 0:00:28]} Bc6 {[%emt 0:00:58]} 57. Ng3 {[%emt 0:00:39]} Kd7 {[%emt 0:00:56]} 58. Bc5 {[%emt 0:00:29]} Ke8 {[%emt 0:00:39]} 59. Bb4 {[%emt 0:00:32]} b6 {[%emt 0:00:17]} 60. axb6 {[%emt 0:00:05]} axb6 {[%emt 0:00:03]} 61. Ba3 {[%emt 0:00:21]} b5 {[%emt 0:00:12]} 62. Bb4 {[%emt 0:00:05]} Kf7 {[%emt 0:00:20]} 63. Bc5 {[%emt 0:00:18]} Ke6 {[%emt 0:00:14]} 64. Bb4 {[%emt 0:01:28]} Kd5 {[%emt 0:00:17]} 65. Ba3 {[%emt 0:00:59]} Kc4 {[%emt 0:00:09]} 66. Bb2 {[%emt 0:00:30]} b4 {[%emt 0:00:15]} 67. Be5 {[%emt 0:00:25]} Kd3 {[%emt 0:00:22]} 68. Bd6 {[%emt 0:00:40]} b3 {[%emt 0:00:07]} 69. Ba3 {[%emt 0:00:21]} Kc2 {[%emt 0:00:29]} 70. Nf1 {[%emt 0:00:32]} Bd6 {[%emt 0:02:15]} 71. Ne3+ {[%emt 0:00:08]} Kd3 {[%emt 0:00:14]} 0-1

[Event "50th La Roda Open 2024"]
[Site "La Roda"]
[Date "2024.03.31"]
[Round "8.15"]
[White "Fernandez Barrera, Victor"]
[Black "Ha, Yihan"]
[Result "1/2-1/2"]
[ECO "B11"]
[WhiteElo "2249"]
[BlackElo "1865"]
[Annotator "RC"]
[PlyCount "61"]
[EventDate "2024.03.27"]
[EventType "swiss"]
[EventCountry "ESP"]
[SourceTitle "playchess.com"]
[Source "ChessBase"]
[SourceQuality "1"]
[TimeControl "5400+30"]

1. e4 {[%emt 0:00:01]} c6 {[%emt 0:00:05]} 2. Nf3 {[%emt 0:00:06]} d5 {[%emt 0:00:13]} 3. Nc3 {[%emt 0:00:05]} Bg4 {[%emt 0:00:07]} 4. h3 {[%emt 0:00:08]} Bxf3 {[%emt 0:00:12]} 5. Qxf3 {[%emt 0:00:05]} Nf6 {[%emt 0:00:06]} 6. d3 {[%emt 0:00:29]} e6 {[%emt 0:01:14]} 7. Bd2 {[%emt 0:00:31]} d4 {[%emt 0:02:40]} 8. Ne2 {[%emt 0:00:48]} Qb6 {[%emt 0:01:45]} 9. O-O-O {[%emt 0:01:45]} Bd6 {[%emt 0:05:56]} 10. g4 {[%emt 0:00:33]} c5 {[%emt 0:03:47]} 11. g5 {[%emt 0:04:39]} Nfd7 {[%emt 0:00:07]} 12. Qg2 {[%emt 0:10:52]} Nc6 {[%emt 1:20:18]} 13. f4 {[%emt 0:00:26]} O-O-O {[%emt 0:00:00]} 14. e5 {[%emt 0:03:22]} Bc7 {[%emt 0:00:00]} 15. Qf2 {[%emt 0:03:58]} Kb8 {[%emt 0:00:00]} 16. Kb1 {[%emt 0:04:01]} Rhf8 {[%emt 0:00:00]} 17. Bg2 {[%emt 0:06:24]} f6 {[%emt 0:00:00]} 18. exf6 {[%emt 0:00:32]} gxf6 {[%emt 0:00:00]} 19. h4 {[%emt 0:04:35]} e5 {[%emt 0:00:00]} 20. f5 {[%emt 0:09:06]} Ne7 {[%emt 0:00:00]} 21. Ng3 {[%emt 0:02:44]} Bd6 {[%emt 0:00:00]} 22. Qf3 {[%emt 0:04:42]} Rc8 {[%emt 0:00:00]} 23. Ne4 {[%emt 0:06:18]} Bc7 {[%emt 0:00:00]} 24. gxf6 {[%emt 0:12:37]} Nd5 {[%emt 0:00:00]} 25. Ka1 {[%emt 0:01:51]} N7xf6 {[%emt 0:00:00]} 26. Nxf6 {[%emt 0:01:16]} Nxf6 {[%emt 0:00:00]} 27. Rde1 {[%emt 0:01:03]} Bd6 {[%emt 0:00:00]} 28. Bh6 {[%emt 0:02:18]} Rf7 {[%emt 0:00:00]} 29. Bg5 {[%emt 0:00:43]} c4 {[%emt 0:00:00]} 30. dxc4 {[%emt 0:02:02]} Rxc4 {[%emt 0:00:00]} 31. Qd3 {[%emt 0:03:46]} 1/2-1/2